[Event "The Schackveckan 2023: Göteborg open"]
[Site "Göteborgs schackcentrum, Vegagatan 20, Gothenburg, Sweden"]
[Date "2023.08.13"]
[Round "7.10"]
[White "Johansson, Roy"]
[Black "Kosmidis, Thomas"]
[Result "1-0"]
[TimeControl "15 minutes + 5 seconds per move from move one (Round 1 - 4) / 90 minutes + 30 seconds per move from move one (Round 5 - 8)"]
[WhiteFideId "1745972"]
[BlackFideId "1753380"]
[WhiteElo "1890"]
[BlackElo "1721"]

1. d4 {[%clk 01:30:29]} {[%emt 00:00:31]} c6 {[%clk 01:30:43]} {[%emt
00:00:18]} 2. Bf4 {[%clk 01:30:37]} {[%emt 00:00:22]} d5 {[%clk 01:30:54]}
{[%emt 00:00:18]} 3. e3 {[%clk 01:30:53]} {[%emt 00:00:14]} Nf6 {[%clk
01:30:59]} {[%emt 00:00:25]} 4. Nd2 {[%clk 01:29:45]} {[%emt 00:01:39]} Bf5
{[%clk 01:30:58]} {[%emt 00:00:29]} 5. Ngf3 {[%clk 01:29:41]} {[%emt 00:00:35]}
Nbd7 {[%clk 01:30:42]} {[%emt 00:00:45]} 6. h3 {[%clk 01:28:58]} {[%emt
00:01:14]} h6 {[%clk 01:30:22]} {[%emt 00:00:51]} 7. c4 {[%clk 01:28:14]}
{[%emt 00:01:13]} e6 {[%clk 01:28:20]} {[%emt 00:02:31]} 8. Qb3 {[%clk
01:27:47]} {[%emt 00:00:57]} b6 {[%clk 01:28:07]} {[%emt 00:00:43]} 9. cxd5
{[%clk 01:26:37]} {[%emt 00:01:40]} cxd5 {[%clk 01:28:10]} {[%emt 00:00:28]} 10.
Ba6 {[%clk 01:26:32]} {[%emt 00:00:35]} e5 {[%clk 01:24:42]} {[%emt 00:03:58]}
11. Nxe5 {[%clk 01:23:19]} {[%emt 00:03:42]} Nxe5 {[%clk 01:24:48]} {[%emt
00:00:25]} 12. Bxe5 {[%clk 01:22:46]} {[%emt 00:01:03]} Bd6 {[%clk 01:24:51]}
{[%emt 00:00:28]} 13. Bb7 {[%clk 01:15:46]} {[%emt 00:07:30]} Rb8 {[%clk
01:23:41]} {[%emt 00:01:40]} 14. Bxd5 {[%clk 01:14:07]} {[%emt 00:02:09]} O-O
{[%clk 01:23:54]} {[%emt 00:00:16]} 15. Bxd6 {[%clk 01:12:57]} {[%emt
00:01:39]} Qxd6 {[%clk 01:24:04]} {[%emt 00:00:21]} 16. Bf3 {[%clk 01:12:14]}
{[%emt 00:01:12]} Rfe8 {[%clk 01:23:53]} {[%emt 00:00:42]} 17. O-O {[%clk
01:11:44]} {[%emt 00:01:00]} g5 {[%clk 01:24:16]} {[%emt 00:00:07]} 18. Nc4
{[%clk 01:09:35]} {[%emt 00:02:39]} Qe7 {[%clk 01:23:44]} {[%emt 00:01:01]} 19.
Ne5 {[%clk 01:08:25]} {[%emt 00:01:41]} Rbc8 {[%clk 01:21:40]} {[%emt
00:02:33]} 20. Rac1 {[%clk 01:07:07]} {[%emt 00:01:49]} Be4 {[%clk 01:21:48]}
{[%emt 00:00:21]} 21. Bxe4 {[%clk 01:05:21]} {[%emt 00:02:17]} Nxe4 {[%clk
01:22:16]} {[%emt 00:00:03]} 22. Qd3 {[%clk 01:03:02]} {[%emt 00:02:48]} Nf6
{[%clk 01:21:01]} {[%emt 00:01:45]} 23. Qf5 {[%clk 01:01:40]} {[%emt 00:01:51]}
Rxc1 {[%clk 01:18:04]} {[%emt 00:03:27]} 24. Rxc1 {[%clk 01:01:54]} {[%emt
00:00:16]} Kg7 {[%clk 01:18:29]} {[%emt 00:00:06]} 25. a3 {[%clk 00:57:30]}
{[%emt 00:04:55]} Qd8 {[%clk 01:07:00]} {[%emt 00:11:58]} 26. Qf3 {[%clk
00:51:01]} {[%emt 00:06:58]} Re6 {[%clk 01:02:14]} {[%emt 00:05:17]} 27. Qb7
{[%clk 00:44:56]} {[%emt 00:06:34]} Re7 {[%clk 01:00:16]} {[%emt 00:02:29]} 28.
Qc8 {[%clk 00:42:16]} {[%emt 00:03:10]} Qxc8 {[%clk 00:55:03]} {[%emt
00:05:43]} 29. Rxc8 {[%clk 00:42:38]} {[%emt 00:00:08]} Nd5 {[%clk 00:53:15]}
{[%emt 00:02:17]} 30. Nc6 {[%clk 00:41:16]} {[%emt 00:01:54]} Rb7 {[%clk
00:51:11]} {[%emt 00:02:33]} 31. Ra8 {[%clk 00:39:41]} {[%emt 00:02:03]} a5
{[%clk 00:51:12]} {[%emt 00:00:31]} 32. Ra7 {[%clk 00:38:33]} {[%emt 00:01:38]}
Rxa7 {[%clk 00:50:51]} {[%emt 00:00:51]} 33. Nxa7 {[%clk 00:38:49]} {[%emt
00:00:14]} f5 {[%clk 00:50:50]} {[%emt 00:00:31]} 34. Nb5 {[%clk 00:38:35]}
{[%emt 00:00:44]} Kf6 {[%clk 00:50:49]} {[%emt 00:00:30]} 35. Kf1 {[%clk
00:37:56]} {[%emt 00:01:09]} h5 {[%clk 00:50:17]} {[%emt 00:01:02]} 36. Ke2
{[%clk 00:37:09]} {[%emt 00:01:18]} h4 {[%clk 00:50:26]} {[%emt 00:00:21]} 37.
f3 {[%clk 00:36:08]} {[%emt 00:01:31]} Ke6 {[%clk 00:50:12]} {[%emt 00:00:44]}
38. Nc3 {[%clk 00:36:03]} {[%emt 00:00:35]} Nf6 {[%clk 00:49:57]} {[%emt
00:00:44]} 39. e4 {[%clk 00:34:56]} {[%emt 00:01:38]} fxe4 {[%clk 00:49:56]}
{[%emt 00:00:31]} 40. Nxe4 {[%clk 00:34:05]} {[%emt 00:01:21]} Nh7 {[%clk
00:49:59]} {[%emt 00:00:27]} 41. Ke3 {[%clk 00:33:53]} {[%emt 00:00:42]} Kd5
{[%clk 00:49:09]} {[%emt 00:01:18]} 42. Kd3 {[%clk 00:33:31]} {[%emt 00:00:54]}
b5 {[%clk 00:48:30]} {[%emt 00:01:09]} 43. Nc3+ {[%clk 00:33:06]} {[%emt
00:00:55]} Kc6 {[%clk 00:48:49]} {[%emt 00:00:10]} 44. Ke4 {[%clk 00:32:52]}
{[%emt 00:00:44]} b4 {[%clk 00:48:40]} {[%emt 00:00:39]} 45. axb4 {[%clk
00:32:49]} {[%emt 00:00:34]} axb4 {[%clk 00:49:04]} {[%emt 00:00:06]} 46. Nd5
{[%clk 00:31:55]} {[%emt 00:01:23]} b3 {[%clk 00:48:23]} {[%emt 00:01:13]} 47.
Ke5 {[%clk 00:31:25]} {[%emt 00:01:00]} Kb5 {[%clk 00:47:42]} {[%emt 00:01:10]}
48. Ne3 {[%clk 00:30:41]} {[%emt 00:01:13]} Nf8 {[%clk 00:46:50]} {[%emt
00:01:23]} 49. Kf6 {[%clk 00:30:25]} {[%emt 00:00:46]} Kc6 {[%clk 00:47:07]}
{[%emt 00:00:13]} 50. Kxg5 {[%clk 00:30:40]} {[%emt 00:00:14]} Ne6+ {[%clk
00:47:26]} {[%emt 00:00:11]} 51. Kxh4 {[%clk 00:30:42]} {[%emt 00:00:28]} Nxd4
{[%clk 00:47:46]} {[%emt 00:00:11]} 52. Kg4 {[%clk 00:30:17]} {[%emt 00:00:55]}
1-0

[Event "The Schackveckan 2023: Göteborg open"]
[Site "Göteborgs schackcentrum, Vegagatan 20, Gothenburg, Sweden"]
[Date "2023.08.13"]
[Round "7.11"]
[White "Buzleta, Patrik"]
[Black "Granath, Andreas"]
[Result "0-1"]
[TimeControl "15 minutes + 5 seconds per move from move one (Round 1 - 4) / 90 minutes + 30 seconds per move from move one (Round 5 - 8)"]
[WhiteFideId "1755463"]
[BlackFideId "1743333"]
[WhiteElo "1604"]
[BlackElo "1673"]

1. Nf3 {[%clk 01:28:20]} {[%emt 00:02:40]} d5 {[%clk 01:26:02]} {[%emt
00:04:58]} 2. e3 {[%clk 01:28:37]} {[%emt 00:00:13]} c5 {[%clk 01:25:56]}
{[%emt 00:00:36]} 3. h3 {[%clk 01:28:47]} {[%emt 00:00:21]} Nc6 {[%clk
01:25:54]} {[%emt 00:00:31]} 4. b3 {[%clk 01:28:02]} {[%emt 00:01:16]} e5
{[%clk 01:20:32]} {[%emt 00:05:51]} 5. Bb5 {[%clk 01:27:13]} {[%emt 00:01:19]}
Bd6 {[%clk 01:20:45]} {[%emt 00:00:17]} 6. Bb2 {[%clk 01:27:22]} {[%emt
00:00:21]} Qc7 {[%clk 01:19:57]} {[%emt 00:01:18]} 7. O-O {[%clk 01:26:04]}
{[%emt 00:01:48]} Nge7 {[%clk 01:19:29]} {[%emt 00:00:58]} 8. d4 {[%clk
01:25:04]} {[%emt 00:01:30]} cxd4 {[%clk 01:18:06]} {[%emt 00:01:53]} 9. exd4
{[%clk 01:25:23]} {[%emt 00:00:11]} e4 {[%clk 01:18:32]} {[%emt 00:00:04]} 10.
Ne5 {[%clk 01:25:23]} {[%emt 00:00:29]} O-O {[%clk 01:18:49]} {[%emt 00:00:14]}
11. f4 {[%clk 01:24:49]} {[%emt 00:01:04]} f6 {[%clk 01:18:30]} {[%emt
00:00:49]} 12. a3 {[%clk 01:23:09]} {[%emt 00:02:10]} fxe5 {[%clk 01:11:56]}
{[%emt 00:07:04]} 13. fxe5 {[%clk 01:22:35]} {[%emt 00:01:04]} Rxf1+ {[%clk
01:12:01]} {[%emt 00:00:25]} 14. Bxf1 {[%clk 01:21:34]} {[%emt 00:01:32]} Nxe5
{[%clk 01:10:45]} {[%emt 00:01:45]} 15. dxe5 {[%clk 01:21:04]} {[%emt
00:01:00]} Bxe5 {[%clk 01:11:07]} {[%emt 00:00:08]} 16. Bxe5 {[%clk 01:19:57]}
{[%emt 00:01:37]} Qxe5 {[%clk 01:11:19]} {[%emt 00:00:18]} 17. c3 {[%clk
01:18:37]} {[%emt 00:01:50]} Qg3 {[%clk 01:10:25]} {[%emt 00:01:23]} 18. c4
{[%clk 01:17:45]} {[%emt 00:01:24]} Qe3+ {[%clk 01:06:08]} {[%emt 00:04:45]} 19.
Kh1 {[%clk 01:17:54]} {[%emt 00:00:21]} d4 {[%clk 01:06:27]} {[%emt 00:00:11]}
20. Ra2 {[%clk 01:17:56]} {[%emt 00:00:29]} Nf5 {[%clk 01:06:13]} {[%emt
00:00:43]} 21. Rd2 {[%clk 01:15:11]} {[%emt 00:03:16]} d3 {[%clk 01:05:02]}
{[%emt 00:01:40]} 22. Bxd3 {[%clk 01:14:28]} {[%emt 00:01:15]} exd3 {[%clk
00:58:14]} {[%emt 00:07:18]} 23. Rxd3 {[%clk 01:14:33]} {[%emt 00:00:25]} Qf2
{[%clk 00:57:19]} {[%emt 00:01:24]} 24. Rf3 {[%clk 00:57:59]} {[%emt 00:17:05]}
Qd4 {[%clk 00:57:06]} {[%emt 00:00:41]} 25. Rd3 {[%clk 00:58:13]} {[%emt
00:00:17]} Qf4 {[%clk 00:50:47]} {[%emt 00:06:47]} 26. Rf3 {[%clk 00:48:25]}
{[%emt 00:10:20]} Qc7 {[%clk 00:44:32]} {[%emt 00:06:44]} 27. g4 {[%clk
00:36:39]} {[%emt 00:12:17]} Bd7 {[%clk 00:39:49]} {[%emt 00:05:13]} 28. Nc3
{[%clk 00:34:35]} {[%emt 00:02:34]} Ne7 {[%clk 00:29:08]} {[%emt 00:11:11]} 29.
Re3 {[%clk 00:28:26]} {[%emt 00:06:40]} Bc6+ {[%clk 00:28:45]} {[%emt
00:00:52]} 30. Kg1 {[%clk 00:27:05]} {[%emt 00:01:50]} Rf8 {[%clk 00:25:52]}
{[%emt 00:03:23]} 31. Nd5 {[%clk 00:26:26]} {[%emt 00:01:10]} Nxd5 {[%clk
00:25:30]} {[%emt 00:00:51]} 32. cxd5 {[%clk 00:26:44]} {[%emt 00:00:13]} Qb6
{[%clk 00:24:22]} {[%emt 00:01:38]} 33. Qd2 {[%clk 00:24:24]} {[%emt 00:02:51]}
Re8 {[%clk 00:24:37]} {[%emt 00:00:14]} 34. dxc6 {[%clk 00:24:24]} {[%emt
00:00:30]} Qxe3+ {[%clk 00:24:59]} {[%emt 00:00:08]} 35. Qxe3 {[%clk 00:24:30]}
{[%emt 00:00:24]} Rxe3 {[%clk 00:25:18]} {[%emt 00:00:11]} 0-1

[Event "The Schackveckan 2023: Göteborg open"]
[Site "Göteborgs schackcentrum, Vegagatan 20, Gothenburg, Sweden"]
[Date "2023.08.13"]
[Round "7.12"]
[White "Mohammed, Safian Haj"]
[Black "Thern, Alfred"]
[Result "1/2-1/2"]
[TimeControl "15 minutes + 5 seconds per move from move one (Round 1 - 4) / 90 minutes + 30 seconds per move from move one (Round 5 - 8)"]
[WhiteFideId "1729276"]
[BlackFideId "1775227"]
[WhiteElo "1862"]
[BlackElo "1643"]

1. e4 {[%clk 01:20:59]} {[%emt 00:10:00]} e5 {[%clk 01:30:52]} {[%emt
00:00:08]} 2. Nf3 {[%clk 01:21:22]} {[%emt 00:00:08]} Nf6 {[%clk 01:31:02]}
{[%emt 00:00:20]} 3. Nxe5 {[%clk 01:21:28]} {[%emt 00:00:23]} d6 {[%clk
01:31:19]} {[%emt 00:00:14]} 4. Nf3 {[%clk 01:21:53]} {[%emt 00:00:05]} Nxe4
{[%clk 01:31:45]} {[%emt 00:00:05]} 5. d4 {[%clk 01:22:09]} {[%emt 00:00:13]}
d5 {[%clk 01:32:05]} {[%emt 00:00:10]} 6. Bd3 {[%clk 01:22:17]} {[%emt
00:00:22]} Bd6 {[%clk 01:31:26]} {[%emt 00:01:09]} 7. O-O {[%clk 01:21:48]}
{[%emt 00:00:59]} O-O {[%emt 00:00:30]} 8. c4 {[%clk 01:22:01]} c6 {[%clk
01:32:03]} {[%emt 00:00:11]} 9. cxd5 {[%clk 01:22:02]} {[%emt 00:00:28]} cxd5
{[%clk 01:32:18]} {[%emt 00:00:15]} 10. Nc3 {[%clk 01:22:17]} {[%emt 00:00:14]}
Nf6 {[%clk 01:31:04]} {[%emt 00:01:44]} 11. Bg5 {[%clk 01:22:23]} {[%emt
00:00:24]} Be6 {[%clk 01:30:05]} {[%emt 00:01:30]} 12. Qb3 {[%clk 01:21:20]}
{[%emt 00:01:32]} Nc6 {[%clk 01:24:17]} {[%emt 00:06:18]} 13. a3 {[%clk
01:13:27]} {[%emt 00:08:23]} Na5 {[%clk 01:18:26]} {[%emt 00:06:22]} 14. Qc2
{[%clk 01:13:46]} {[%emt 00:00:11]} h6 {[%clk 01:16:53]} {[%emt 00:02:03]} 15.
Bh4 {[%clk 01:14:04]} {[%emt 00:00:11]} Be7 {[%clk 01:16:28]} {[%emt 00:00:56]}
16. Rfe1 {[%clk 01:13:50]} {[%emt 00:00:44]} Nc6 {[%clk 01:15:32]} {[%emt
00:01:25]} 17. h3 {[%clk 01:12:11]} {[%emt 00:02:09]} Rc8 {[%clk 01:11:04]}
{[%emt 00:04:59]} 18. Rad1 {[%clk 01:10:38]} {[%emt 00:02:02]} Qd7 {[%clk
01:06:59]} {[%emt 00:04:35]} 19. Qe2 {[%clk 01:07:02]} {[%emt 00:04:06]} a6
{[%clk 01:00:33]} {[%emt 00:06:58]} 20. Bb1 {[%clk 01:07:08]} {[%emt 00:00:23]}
g5 {[%clk 00:57:41]} {[%emt 00:03:21]} 21. Bg3 {[%clk 01:03:14]} {[%emt
00:04:25]} Bd6 {[%clk 00:56:24]} {[%emt 00:01:46]} 22. Ne5 {[%clk 01:02:31]}
{[%emt 00:01:13]} Qc7 {[%clk 00:53:59]} {[%emt 00:02:55]} 23. Nxf7 {[%clk
00:57:47]} {[%emt 00:05:14]} Bxf7 {[%clk 00:52:51]} {[%emt 00:01:38]} 24. Qd3
{[%clk 00:56:52]} {[%emt 00:01:26]} Bxg3 {[%clk 00:50:18]} {[%emt 00:03:02]} 25.
fxg3 {[%clk 00:56:56]} {[%emt 00:00:26]} Be8 {[%clk 00:46:16]} {[%emt
00:04:33]} 26. Re6 {[%clk 00:54:30]} {[%emt 00:02:56]} Qg7 {[%clk 00:42:49]}
{[%emt 00:03:57]} 27. Ba2 {[%clk 00:54:23]} {[%emt 00:00:37]} Bf7 {[%clk
00:41:33]} {[%emt 00:01:46]} 28. Re3 {[%clk 00:53:51]} {[%emt 00:01:02]} Rcd8
{[%clk 00:40:56]} {[%emt 00:01:07]} 29. Rf1 {[%clk 00:54:09]} {[%emt 00:00:11]}
Bg6 {[%clk 00:40:31]} {[%emt 00:00:56]} 30. Qd2 {[%clk 00:54:08]} {[%emt
00:00:30]} Kh8 {[%clk 00:39:55]} {[%emt 00:01:07]} 31. h4 {[%clk 00:54:03]}
{[%emt 00:00:34]} Be4 {[%clk 00:38:43]} {[%emt 00:01:42]} 32. hxg5 {[%clk
00:53:57]} {[%emt 00:00:36]} Qxg5 {[%clk 00:38:08]} {[%emt 00:01:06]} 33. Rf4
{[%clk 00:54:16]} {[%emt 00:00:11]} Ng4 {[%clk 00:36:47]} {[%emt 00:01:52]} 34.
Rxg4 {[%clk 00:54:24]} {[%emt 00:00:21]} Qxg4 {[%clk 00:36:56]} {[%emt
00:00:22]} 35. Rxe4 {[%clk 00:54:34]} {[%emt 00:00:19]} Qg5 {[%clk 00:33:43]}
{[%emt 00:03:43]} 36. Qxg5 {[%clk 00:54:50]} {[%emt 00:00:13]} hxg5 {[%clk
00:34:11]} {[%emt 00:00:02]} 37. Nxd5 {[%clk 00:55:08]} {[%emt 00:00:13]} Rf5
{[%clk 00:32:12]} {[%emt 00:02:28]} 38. Ne3 {[%clk 00:55:28]} {[%emt 00:00:11]}
Rb5 {[%clk 00:32:04]} {[%emt 00:00:39]} 39. b4 {[%clk 00:55:26]} {[%emt
00:00:32]} Rxd4 {[%clk 00:30:53]} {[%emt 00:01:40]} 40. Re8+ {[%clk 00:55:38]}
{[%emt 00:00:18]} Kh7 {[%clk 00:30:34]} {[%emt 00:00:49]} 41. Bb1+ {[%clk
00:55:26]} {[%emt 00:00:42]} Kg7 {[%clk 00:30:19]} {[%emt 00:00:45]} 42. Nf5+
{[%clk 00:55:35]} {[%emt 00:00:21]} Rxf5 {[%clk 00:30:24]} {[%emt 00:00:26]} 43.
Bxf5 {[%clk 00:55:57]} {[%emt 00:00:07]} Rd1+ {[%clk 00:30:12]} {[%emt
00:00:42]} 44. Kf2 {[%clk 00:54:46]} {[%emt 00:01:41]} Rd2+ {[%clk 00:29:47]}
{[%emt 00:00:55]} 45. Kf3 {[%clk 00:51:17]} {[%emt 00:03:58]} Nd4+ {[%clk
00:29:19]} {[%emt 00:00:58]} 46. Kg4 {[%clk 00:51:37]} {[%emt 00:00:09]} Kf6
{[%clk 00:27:52]} {[%emt 00:01:58]} 47. Bc8 {[%clk 00:47:52]} {[%emt 00:04:16]}
Nc6 {[%clk 00:19:15]} {[%emt 00:09:07]} 48. Bxb7 {[%clk 00:47:10]} {[%emt
00:01:12]} Ne5+ {[%clk 00:19:30]} {[%emt 00:00:15]} 49. Rxe5 {[%clk 00:44:35]}
{[%emt 00:03:05]} Kxe5 {[%clk 00:19:36]} {[%emt 00:00:24]} 50. Bxa6 {[%clk
00:44:29]} {[%emt 00:00:35]} Rxg2 {[%clk 00:18:39]} {[%emt 00:01:28]} 51. b5
{[%clk 00:38:52]} {[%emt 00:06:07]} Kd6 {[%clk 00:17:37]} {[%emt 00:01:33]} 52.
Bb7 {[%clk 00:35:57]} {[%emt 00:03:24]} Rg1 {[%clk 00:17:29]} {[%emt 00:00:38]}
53. a4 {[%clk 00:35:53]} {[%emt 00:00:34]} Kc5 {[%clk 00:16:44]} {[%emt
00:01:16]} 54. Bc6 {[%clk 00:35:37]} {[%emt 00:00:45]} Kb6 {[%clk 00:16:40]}
{[%emt 00:00:34]} 55. Kf3 {[%clk 00:32:27]} {[%emt 00:03:39]} Rc1 {[%clk
00:14:20]} {[%emt 00:02:50]} 56. Ke4 {[%clk 00:30:25]} {[%emt 00:02:32]} Rg1
{[%clk 00:14:25]} {[%emt 00:00:26]} 57. Kf3 {[%clk 00:30:36]} {[%emt 00:00:19]}
Rc1 {[%clk 00:14:48]} {[%emt 00:00:07]} 58. Bd7 {[%emt 00:07:11]} Rc4 {[%clk
00:14:29]} 1/2-1/2

[Event "The Schackveckan 2023: Göteborg open"]
[Site "Göteborgs schackcentrum, Vegagatan 20, Gothenburg, Sweden"]
[Date "2023.08.13"]
[Round "7.13"]
[White "Torres, Lucas"]
[Black "Lindholm, Marcus"]
[Result "1-0"]
[TimeControl "15 minutes + 5 seconds per move from move one (Round 1 - 4) / 90 minutes + 30 seconds per move from move one (Round 5 - 8)"]
[WhiteFideId "1769464"]
[BlackFideId "1743473"]
[WhiteElo "1501"]
[BlackElo "1708"]

1. e4 {[%clk 01:28:02]} {[%emt 00:02:57]} c5 {[%clk 01:30:52]} {[%emt
00:00:09]} 2. Nc3 {[%clk 01:28:17]} {[%emt 00:00:15]} Nc6 {[%clk 01:31:15]}
{[%emt 00:00:07]} 3. Bb5 {[%clk 01:28:37]} {[%emt 00:00:10]} Nd4 {[%clk
01:31:28]} {[%emt 00:00:18]} 4. Nf3 {[%clk 01:28:58]} {[%emt 00:00:08]} g6
{[%clk 01:31:03]} {[%emt 00:00:55]} 5. Nxd4 {[%clk 01:28:15]} {[%emt 00:01:12]}
cxd4 {[%clk 01:30:54]} {[%emt 00:00:40]} 6. Ne2 {[%clk 01:28:35]} {[%emt
00:00:10]} Bg7 {[%clk 01:30:27]} {[%emt 00:00:58]} 7. d3 {[%clk 01:27:51]}
{[%emt 00:01:13]} e6 {[%clk 01:29:03]} {[%emt 00:01:54]} 8. O-O {[%clk
01:27:38]} {[%emt 00:00:41]} Ne7 {[%clk 01:29:26]} {[%emt 00:00:10]} 9. f4
{[%clk 01:24:16]} {[%emt 00:03:51]} O-O {[%clk 01:29:13]} {[%emt 00:00:43]} 10.
Ba4 {[%clk 01:18:23]} {[%emt 00:06:22]} d5 {[%clk 01:21:17]} {[%emt 00:08:27]}
11. e5 {[%clk 01:10:38]} {[%emt 00:08:15]} f6 {[%clk 01:18:25]} {[%emt
00:03:22]} 12. exf6 {[%clk 00:56:28]} {[%emt 00:14:40]} Bxf6 {[%clk 01:18:21]}
{[%emt 00:00:33]} 13. Ng3 {[%clk 00:55:33]} {[%emt 00:01:25]} b5 {[%clk
01:18:38]} {[%emt 00:00:14]} 14. Bb3 {[%clk 00:50:52]} {[%emt 00:05:11]} a5
{[%clk 01:10:59]} {[%emt 00:08:10]} 15. a4 {[%clk 00:49:29]} {[%emt 00:01:51]}
b4 {[%clk 01:01:34]} {[%emt 00:09:57]} 16. Bd2 {[%clk 00:47:40]} {[%emt
00:02:17]} Bd7 {[%clk 01:01:24]} {[%emt 00:00:41]} 17. Rc1 {[%clk 00:45:01]}
{[%emt 00:03:05]} Qe8 {[%clk 00:58:05]} {[%emt 00:03:54]} 18. c3 {[%clk
00:40:30]} {[%emt 00:04:59]} dxc3 {[%clk 00:57:56]} {[%emt 00:00:40]} 19. bxc3
{[%clk 00:39:43]} {[%emt 00:01:17]} Nc6 {[%clk 00:52:48]} {[%emt 00:05:37]} 20.
Re1 {[%clk 00:32:55]} {[%emt 00:07:14]} bxc3 {[%clk 00:50:49]} {[%emt
00:02:34]} 21. Bxc3 {[%clk 00:33:13]} {[%emt 00:00:12]} Bxc3 {[%clk 00:51:13]}
{[%emt 00:00:06]} 22. Rxc3 {[%clk 00:33:00]} {[%emt 00:00:42]} Qb8 {[%clk
00:50:57]} {[%emt 00:00:47]} 23. Ne2 {[%clk 00:25:16]} {[%emt 00:08:07]} Nd4
{[%clk 00:41:59]} {[%emt 00:09:35]} 24. Nxd4 {[%clk 00:22:08]} {[%emt
00:03:38]} Qb6 {[%clk 00:40:20]} {[%emt 00:02:09]} 25. Kh1 {[%clk 00:21:58]}
{[%emt 00:00:40]} Qxd4 {[%clk 00:40:20]} {[%emt 00:00:30]} 26. Rc7 {[%clk
00:21:51]} {[%emt 00:00:36]} Rf7 {[%clk 00:39:22]} {[%emt 00:01:29]} 27. g3
{[%clk 00:14:19]} {[%emt 00:08:02]} Rb8 {[%clk 00:30:11]} {[%emt 00:09:40]} 28.
Qc2 {[%clk 00:09:20]} {[%emt 00:05:30]} Rb4 {[%clk 00:25:45]} {[%emt 00:04:56]}
29. Rxd7 {[%clk 00:08:03]} {[%emt 00:01:47]} Rxd7 {[%clk 00:23:09]} {[%emt
00:03:06]} 30. Qc8+ {[%clk 00:08:22]} {[%emt 00:00:10]} Kg7 {[%clk 00:23:35]}
{[%emt 00:00:05]} 31. Qxd7+ {[%clk 00:08:41]} {[%emt 00:00:11]} Kh6 {[%clk
00:23:59]} {[%emt 00:00:05]} 32. Bd1 {[%clk 00:05:18]} {[%emt 00:03:52]} Rb6
{[%clk 00:22:34]} {[%emt 00:01:57]} 33. Qe7 {[%clk 00:04:30]} {[%emt 00:01:16]}
Rb8 {[%clk 00:22:07]} {[%emt 00:01:00]} 34. Qg5+ {[%clk 00:03:18]} {[%emt
00:01:40]} Kg7 {[%clk 00:22:17]} {[%emt 00:00:21]} 35. Qe5+ {[%clk 00:03:28]}
{[%emt 00:00:19]} Qxe5 {[%clk 00:22:29]} {[%emt 00:00:19]} 36. Rxe5 {[%clk
00:03:41]} {[%emt 00:00:17]} Rb1 {[%clk 00:22:51]} {[%emt 00:00:07]} 37. Re1
{[%clk 00:04:00]} {[%emt 00:00:11]} Kf6 {[%clk 00:22:50]} {[%emt 00:00:32]} 38.
Kg2 {[%clk 00:04:17]} {[%emt 00:00:10]} 1-0